Cogmind - Beta 13 @@@ ROGUE MODE // 2024.05.29 @ 20:13:26 Player: saltine Result: Destroyed by Y-45 Defender with Heavy Assault Rifle Performance ------------- Evolutions (2) 1000 Regions Visited (3) 600 Robots Destroyed (67) 335 Value Destroyed (1635) 1635 Prototype IDs (0) 0 Alien Tech Used (0) 0 Bonus (214) 214 TOTAL SCORE: 3784 Bonus ------- High Alert Combat Kills 214 Cogmind --------- Core Integrity 0/550 Matter 220/300 Energy 70/100 System Corruption 0% Temperature Cool (27) Movement Core (350) Ox6 Location -8/Materials Parts ------- > --- POWER (1) -------- (None) > --- PROPULSION (3) --- (None) > --- UTILITY (4) ------ Large Storage Unit Improved Targeting Computer Transmission Jammer > --- WEAPON (3) ------- (None) > --- INVENTORY (15) --- (None) Peak State ------------ > --- POWER ------------ Improved Ion Engine > --- PROPULSION ------- Light Treads Light Treads Advanced Treads > --- UTILITY ---------- Large Storage Unit Improved Targeting Computer Improved Targeting Computer Transmission Jammer > --- WEAPON ----------- Particle Gun Light Assault Rifle Rocket Launcher > --- INVENTORY -------- Light Ion Engine Improved Ion Engine Light Treads Particle Gun Rocket Launcher Rocket Launcher [Rating: 22] Favorites ----------- Power Ion Engine Engine Ion Engine Power Core Nuclear Core Propulsion Light Treads Treads Light Treads Utility Improved Targeting Computer Device Transmission Jammer Storage Large Storage Unit Processor Improved Targeting Computer Protection Backup Plating I Weapon Light Assault Rifle Energy Gun Particle Gun Ballistic Gun Light Assault Rifle Launcher Rocket Launcher Build | -11 -10 -9 -8 ------- Run | Yrd Mat Mat Mat Slots Evolved 4 | . . 2 2 Power . | . . . . Propulsion 1 | . . 1 . Utility 2 | . . 1 1 Weapon 1 | . . . 1 Parts Attached 39 | 6 9 10 14 Power 7 | 1 1 2 3 Engine 5 | 1 1 1 2 Core 2 | . . 1 1 Reactor . | . . . . Propulsion 12 | 2 2 4 4 Treads 12 | 2 2 4 4 Leg . | . . . . Wheel . | . . . . Hover . | . . . . Flight . | . . . . Utility 7 | 1 3 1 2 Device 1 | . . . 1 Storage 3 | 1 2 . . Processor 2 | . 1 1 . Hackware . | . . . . Protection 1 | . . . 1 Artifact . | . . . . Weapon 13 | 2 3 3 5 Energy Gun 5 | 1 1 1 2 Energy Cannon . | . . . . Ballistic Gun 3 | 1 1 1 . Ballistic Cannon . | . . . . Launcher 5 | . 1 1 3 Special Weapon . | . . . . Impact Weapon . | . . . . Slashing Weapon . | . . . . Piercing Weapon . | . . . . Special Melee Weapon . | . . . . Unidentified Prototypes . | . . . . Parts Lost 27 | . 3 5 19 Power 7 | . 1 2 4 Propulsion 8 | . . 2 6 Utility 3 | . 1 . 2 Weapon 9 | . 1 1 7 Highest Loss Streak 9 | . 2 2 9 To Critical Strikes . | . . . . Average Slot Usage (%) 88 | . 95 84 83 Engine 10 | . 13 10 5 Treads 22 | . 28 18 19 Device 2 | . . . 8 Storage 11 | . 14 11 9 Processor 14 | . 7 22 14 Protection 1 | . 2 . 1 Energy Gun 6 | . 3 7 8 Ballistic Gun 10 | . 19 4 5 Launcher 7 | . 5 9 7 Naked Turns . | . . . . Heaviest Build 42 | 13 30 34 42 Greatest Support 62 | 40 40 60 62 Greatest Overweight (x) 13 | 4 . 1 13 Average Overweight (x) . | 1 . . . Largest Inventory Capacity 15 | 8 15 15 15 Average Capacity 13 | 7 12 15 15 Most Carried 9 | 2 9 8 7 Average Carried 5 | 1 5 5 4 Final Capacity 15 | 8 15 15 15 Final Carried 8 | 2 8 6 . Class Distribution -------------------- 83% | Mutant 14% | Gunner Dominant Class ---------------- Mutant | -10/Materials Mutant | -9/Materials Gunner | -8/Materials Resources | -11 -10 -9 -8 ----------- Run | Yrd Mat Mat Mat Matter Collected 871 | 166 273 252 180 Remotely . | . . . . Salvage Created 1545 | . 329 408 808 Parts 95 | . 16 32 47 Haulers Intercepted 2 | . 1 1 . Recyclers Shooed . | . . . . Parts Field Recycled . | . . . . Retrieved Matter . | . . . . Parts Self-Destructed . | . . . . Prevented . | . . . . Kills | -11 -10 -9 -8 ------- Run | Yrd Mat Mat Mat Combat Hostiles Destroyed 45 | . 7 15 23 Melee 1 | . . . 1 Guns 16 | . 6 4 6 AOE 28 | . 1 11 16 Classes Destroyed 12 | . 6 3 3 Worker 6 | . 1 . 5 Builder 7 | . . 4 3 Tunneler 1 | . . . 1 Hauler 2 | . 1 1 . Recycler 4 | . . 2 2 Mechanic 1 | . 1 . . Operator 1 | . 1 . . Swarmer 17 | . 3 7 7 Grunt 16 | . 4 4 8 Brawler 2 | . . . 2 Sentry 6 | . . 4 2 Specialist 4 | . . . 4 Best Kill Streak 13 | . 4 6 13 Combat Bots Only 9 | . 3 5 9 Max Kills in Single Turn 4 | . 1 3 4 Gunslinging . | . . . . Exploded 4 | . 1 2 4 Melee 1 | . . . 1 Uniques/NPCs Destroyed . | . . . . Combat | -11 -10 -9 -8 -------- Run | Yrd Mat Mat Mat Hostile Shots Fired 304 | . 68 54 182 Missed 73 | . 12 14 47 Damage Taken 3606 | . 678 777 2151 Core 943 | . 144 241 558 Absorbed by Shields . | . . . . Regen/Repaired (Parts) 135 | . . 135 . Core Remaining (%) 60 | 100 42 39 . Volleys Fired 96 | . 39 27 30 Largest 3 | . 2 2 3 Hottest 130 | . 60 98 130 Shots Fired 178 | . 71 47 60 Gun 145 | . 70 28 47 Cannon . | . . . . Launcher 33 | . 1 19 13 Special . | . . . . Kinetic 98 | . 68 16 14 Thermal 45 | . . 12 33 Explosive 33 | . 1 19 13 Electromagnetic 2 | . 2 . . Robot Hit Streak 17 | . 14 9 17 Robot Miss Streak 5 | . 5 2 2 Penetration Max . | . . . . Secondary Targets 4 | . 3 . 1 Max Gunslinging Chain 1 | . 1 . 1 Shots Hit Robots 134 | . 53 32 49 Core Hits 111 | . 19 31 61 Critical Kills 1 | . 1 . . Critical Parts Destroyed 1 | . 1 . . Critical Strikes 5 | . 2 . 3 Burn 3 | . . . 3 Destroy 2 | . 2 . . Melee Attacks . | . . . . Impact . | . . . . Slashing . | . . . . Piercing . | . . . . Sneak Attacks . | . . . . Combat Hostiles . | . . . . Follow-up Attacks . | . . . . Damage Inflicted 4517 | . 731 1417 2369 Guns 1265 | . 536 218 511 Cannons . | . . . . Explosions 3209 | . 164 1199 1846 Melee . | . . . . Ramming 43 | . 31 . 12 Kinetic 693 | . 509 75 109 Thermal 661 | . 43 216 402 Explosive 3093 | . 121 1126 1846 Electromagnetic 27 | . 27 . . Impact . | . . . . Slashing . | . . . . Piercing . | . . . . Highest Corruption . | . . . . Average Corruption . | . . . . Corruption Purged . | . . . . Corruption Blocked . | . . . . Overload Shots . | . . . . Overflow Damage 166 | . 6 117 43 Projectiles . | . . . . Explosions 166 | . 6 117 43 Melee . | . . . . Knockbacks . | . . . . Impact . | . . . . Kinetic . | . . . . Secondary . | . . . . Self-Inflicted Damage 420 | . 29 270 121 Shots 15 | . 1 9 5 Rammed 8 | . 4 . 4 Targets Rammed 9 | . 4 . 5 Kicked . | . . . . Crushed 1 | . . . 1 Highest Temperature 354 | . 32 312 354 Average Temperature 103 | . 14 96 141 Received Heat Transfer 1440 | . 321 219 900 Effects 1 | . . . 1 Interference 1 | . . . 1 Siege Activations . | . . . . Robots Corrupted . | . . . . Combat Hostiles . | . . . . Parts Fried . | . . . . Impact Corruptions . | . . . . Robots Melted . | . . . . Combat Hostiles . | . . . . Parts Melted 3 | . 1 . 2 Heat Transferred 1580 | . 50 383 1147 Parts Sabotaged . | . . . . Parts Stolen . | . . . . Parts Stripped . | . . . . Power Chain Reactions 1 | . 1 . . Alert | -11 -10 -9 -8 ------- Run | Yrd Mat Mat Mat Peak Influence 654 | . 141 511 654 Initial 215 | . . 59 215 Average 242 | . 82 344 390 Maximum Alert Level 2 | . . 2 2 Low Security (%) 45 | 100 100 11 . Level 1 31 | . . 52 55 Level 2 22 | . . 35 44 Level 3 . | . . . . Level 4 . | . . . . Level 5 . | . . . . High Security . | . . . . Max Security . | . . . . Squads Dispatched 6 | . . 3 3 Investigation 2 | . . 2 . Extermination . | . . . . Reinforcement 3 | . . 1 2 Assault 1 | . . . 1 Garrison . | . . . . Intercept . | . . . . Searches Triggered . | . . . . Construction Impeded . | . . . . Haulers Reinforced . | . . . . Active Scanning Responses . | . . . . Cargo Convoy Interrupts . | . . . . Stealth | -11 -10 -9 -8 --------- Run | Yrd Mat Mat Mat Distress Signals 1 | . 1 . . Communications Jammed 5 | . . . 5 Distress Signals 5 | . . . 5 Times Spotted 61 | . 16 16 29 Peak Tracking Total 12 | . 5 5 12 Tactical Retreats 1 | . 1 . . Traps | -11 -10 -9 -8 ------- Run | Yrd Mat Mat Mat Traps Triggered 3 | . 1 2 . Indirectly . | . . . . Trap Hack Attempts . | . . . . Triggered . | . . . . Disarmed . | . . . . Reprogrammed . | . . . . Reused . | . . . . Traps Extracted . | . . . . Installed . | . . . . Triggered . | . . . . Machines | -11 -10 -9 -8 ---------- Run | Yrd Mat Mat Mat Machines Disabled 9 | . . 7 2 Max in Single Turn 3 | . . 3 1 Machines Repaired . | . . . . Machines Dismantled . | . . . . Machines Sabotaged . | . . . . Overloaded Fab Kills . | . . . . Hacking | -11 -10 -9 -8 --------- Run | Yrd Mat Mat Mat Machines Accessed 13 | . 6 6 1 Terminals 11 | . 5 5 1 Fabricators . | . . . . Repair Stations 2 | . 1 1 . Recycling Units . | . . . . Scanalyzers . | . . . . Garrison Access . | . . . . Total Hacks 33 | . 14 17 2 Successful 12 | . 2 9 1 Failed 21 | . 12 8 1 Catastrophic 7 | . 4 3 . Database Lockouts . | . . . . Manual 24 | . 11 11 2 Terminals 29 | . 13 14 2 Fabricators . | . . . . Repair Stations 4 | . 1 3 . Recycling Units . | . . . . Scanalyzers . | . . . . Garrison Access . | . . . . Terminal Hacks 3 | . . 3 . Level Access Points 1 | . . 1 . Branch Access Points 1 | . . 1 . Recall Investigation 1 | . . 1 . Fabricator Hacks . | . . . . Repair Station Hacks 3 | . 1 2 . Scan Component 1 | . . 1 . Repair 1 | . . 1 . Refit 1 | . 1 . . Recycling Unit Hacks . | . . . . Scanalyzer . | . . . . Garrison Access Hacks . | . . . . Unauthorized Hacks 6 | . 1 4 1 Terminals 6 | . 1 4 1 Botnet 6 | . 1 4 1 Fabricators . | . . . . Repair Stations . | . . . . Recycling Units . | . . . . Scanalyzers . | . . . . Garrison Access . | . . . . Data Cores Recovered 1 | . 1 . . Used . | . . . . Hacking Detections 10 | . 5 4 1 Full Trace Events 1 | . . 1 . Feedback Events . | . . . . Feedback Blocked . | . . . . Robot Schematics Acquired . | . . . . Robots Built . | . . . . Authchips . | . . . . Time . | . . . . Total Robot Build Rating . | . . . . Part Schematics Acquired . | . . . . Parts Built . | . . . . Authchips . | . . . . Time . | . . . . Total Part Build Rating . | . . . . Parts Repaired 1 | . . 1 . Time 26 | . . 26 . Parts Recycled . | . . . . Recycled Matter . | . . . . Retrieved Matter . | . . . . Retrieved Components . | . . . . Parts Scanalyzed . | . . . . Part Schematics Acquired . | . . . . Parts Damaged . | . . . . Bothacking | -11 -10 -9 -8 ------------ Run | Yrd Mat Mat Mat Used RIF Installer . | . . . . Robots Hacked . | . . . . Non-combat . | . . . . Combat . | . . . . Robot Hacks Applied . | . . . . Relay Couplers Released . | . . . . Fabnet Peak Effective % . | . . . . Robots Rewired . | . . . . Allies Hacked . | . . . . Hacks Repelled . | . . . . Allies | -11 -10 -9 -8 -------- Run | Yrd Mat Mat Mat Total Allies . | . . . . Largest Group . | . . . . Highest-Rated Group . | . . . . Highest-Rated Ally . | . . . . Total Orders . | . . . . Ally Attacks . | . . . . Total Damage . | . . . . Kills . | . . . . Allies Corrupted . | . . . . Allies Melted . | . . . . Intel | -11 -10 -9 -8 ------- Run | Yrd Mat Mat Mat Robot Analysis Total . | . . . . Derelict Logs Recovered . | . . . . Drone Launches . | . . . . Drone Recoveries . | . . . . Exploration | -11 -10 -9 -8 ------------- Run | Yrd Mat Mat Mat Turns Passed 2058 | 89 764 737 468 Spaces Moved 991 | 47 392 364 188 Core 40 | 22 . . 18 Treads 951 | 25 392 364 170 Legs . | . . . . Wheels . | . . . . Hover . | . . . . Flight . | . . . . Fastest Speed 50 | 50 160 160 152 Average Speed 169 | 168 160 171 187 Slowest Speed 700 | 250 160 240 700 Overloaded Moves . | . . . . Propulsion Burnouts . | . . . . Robots Hopped . | . . . . Cave-ins Triggered . | . . . . Exploration Rate (%) 35 | 5 66 38 31 Regions Visited 3 Branch Regions . Pre-discovered Areas . | . . . . Known Exits Taken 1 | . . 1 . Unknown Exits Taken 2 | 1 1 . . Scrap Searched . | . . . . Spaces Dug . | . . . . Terrain Destroyed 258 | . 16 167 75 Melee . | . . . . Projectile . | . . . . AOE 258 | . 16 167 75 Terrain Rammed . | . . . . Walls Destroyed . | . . . . Machines Disabled . | . . . . Actions | -11 -10 -9 -8 --------- Run | Yrd Mat Mat Mat Total 1194 | 54 462 430 248 Wait 39 | . 6 26 7 Move 988 | 46 391 363 188 Hop . | . . . . Pick Up 20 | 2 10 4 4 Fast Attach 13 | 6 3 2 2 Attach 21 | . 4 6 11 Detach . | . . . . Swap 5 | . 2 2 1 Drop 3 | . 3 . . Fire 96 | . 39 27 30 Melee . | . . . . Ram . | . . . . Kick . | . . . . Crush 9 | . 4 . 5 Escape Stasis . | . . . . Rewire . | . . . . Trap . | . . . . Miscellaneous . | . . . . Route ------- -11/Scrapyard -10/Materials (discovered 2 exits: *Mat / [*Min]) -9/Materials (discovered 4 exits: *Mat x3 / *Min) -8/Materials History --------- Turn | Location | Event 19 | -11/Scrapyard | Discovered new exit (range 15) 90 | -11/Scrapyard | Entered Materials 307 | -10/Materials | Build established: Mutant 559 | -10/Materials | Core integrity fell below 50% 663 | -10/Materials | Discovered new exit (range 11) 764 | -10/Materials | Discovered new exit (range 13) 854 | -10/Materials | Entered another Materials area 854 | -9/Materials | Evolved 2 slots: Propulsion x1, Utility x1 1172 | -9/Materials | Repaired Lgt. Treads 1455 | -9/Materials | Identified exit to Materials 1455 | -9/Materials | Discovered new exit (range 15) 1489 | -9/Materials | Identified exit to Mines 1510 | -9/Materials | Core integrity fell below 50% 1591 | -9/Materials | Entered another Materials area 1591 | -8/Materials | Evolved 2 slots: Utility x1, Weapon x1 1935 | -8/Materials | Lost 8 parts (1p3n1u3w) 1991 | -8/Materials | First assault squad dispatched 2037 | -8/Materials | Core integrity fell below 50% 2047 | -8/Materials | Destroyed 9 combat bots 2047 | -8/Materials | Core integrity fell below 20% 2059 | -8/Materials | Destroyed by Y-45 Defender with Heavy Assault Rifle Last Messages --------------- 02027_ Rocket Launcher destroyed. 02029_ M-28 Smith repairs G-50 Soldier. 02030_ K-01 Serf collects debris. 02030_ Critical hit (Burn: +37). 02031_ The unstable cave ceiling collapses. 02031_ M-28 Smith repairs Hvy. Laser. 02033_ Critical hit (Burn: +37). 02033_ M-28 Smith repairs Carbon-fiber Leg. 02033_ K-01 Serf collects debris. 02036_ Lgt. Ion Engine destroyed. 02037_ K-01 Serf collects debris. 02040_ Critical hit (Burn: +37). 02041_ K-01 Serf collects debris. 02042_ Critical hit (Burn: +37). 02045_ The unstable cave ceiling collapses. 02048_ K-01 Serf collects debris. 02049_ M-28 Smith repairs Y-45 Defender. 02056_ The unstable cave ceiling collapses. 02056_ K-01 Serf cleans the Terminal. 02059_ Critical hit (Burn: +37). Map ----- +----------------------------------------------------+ | ?????????????????????????????????##########?# | | ?????????????????????????????????# ### | | ?????????????????????????????????# ######## | | ?????????????????????????????????# # | | ?????????????????????????????????# """ # | | ?????????????????????????????????# """"" + "" | | ?????????????????????????????????# """"" # = ="" | | ?????????????????????????????????# """"" ### "" | | ?????????????????????????????????# """ ### | | ???????????????????????????????????? #?# | | ???????????????????????????????????########?# "" | | ?????????????????????????##????????? ??????# "" | | ????????????????????????? ?????????? ????# "" | | ????????????????????????? ??????????" ???# | | ????????????????????????? ??????????"" ?# | | ????????????????????????" ??????????"" ?# "" | | ????????????????????????Tk ???????#??"" ?+ = "" | | ????????????????????????" ???????# ?"" #=% "" | | ???????????????????????? k ? ?# """ # | | ????????????????????????#/#? ?# "" | | ???????????????????????? ? ?# "" # | | ??????????????????????###/## ## " | | ??????????????????????# g # ?# % | | ??????????????????????# [ =## #?# # [ * | | ??????????????????????# ## ### #*! !% | | ??????????????????????# @=## ## # = | | ??????????????????????#= ==## #### ####### | | ??????????????????????# ##%=* ### ## ####% | | ??????????????????????# # %!= + * | ! ! | | ??????????????????????# Yg# [= # #### ## | | ?????????????????????#### # !* % % #### | | ?????????????????????# !! #?# | | ?????????????????????# Y !!# ! #?# | | ?????????????????????# " m%=% #?#### | | ?????????????????????#[ * = #######????###### | | ?????????????????????# !%#=*% #???????????????? | | ?????????????????????# ! %#%* ??????????? | | ?????????????????????### ! !#[ !?????????? | | ???????????????????????## # ?????????? | | ????????????????????????## # # """ ??????????? | | ??????????????????????????### %+ ""?????????????? | | ????????????????????????????# # ""?????????????? | | ????????????????????????????# # ?????????????? | | ???????????????????????????? #? ????????????? | | ????????????????????????????##+##?#?#????????????? | | ?????????????????????????????????????????????????? | | ?????????????????????????????????????????????????? | | ?????????????????????????????????????????????????? | | ?????????????????????????????????????????????????? | | ?????????????????????????????????????????????????? | +----------------------------------------------------+ Best States ------------- Heat Dissipation 31 Energy Generation 14 Energy Capacity 265 Matter Stores 300 Matter Capacity 300 Sight Range 16 Terrain Scan Density 10 Jamming Range 12 Armor Coverage 225 Evasion (%) 40 Targeting Accuracy 12 Recoil Reduction 3 Item Schematics ----------------- None Robot Schematics ------------------ None Fabricated ------------ Nothing Alien Tech Used ----------------- None Achievements -------------- None Challenges ------------ None Game ------ Seed HardcellPiercingMantle Manual? 0 Play Time 00:25:42 Cumulative 18.0 hours Start 2024.05.29 @ 19:36:58 End 2024.05.29 @ 20:13:26 Sessions 1 Manual Loads 0 Difficulty Rogue Special Mode None Game No. 29 Rogue 29 Adventurer 0 Explorer 0 Win Type - Total 0 Types 0/0/0/0/0/0/0/0/0 Lore% 7 Gallery% 28 Achievement% 19 Wizard Run 0 Options --------- Layout 1 ASCII 0 Keyboard 0 Movement Arrows Keybinds 0 Fullscreen 1 Font 16/SmallcapsGlow Map View 50x35 Zoom Use 0% Tactical HUD 1 Map Filters NONE Filters NONE Steam 1 RUN: eb244a6e-b58b-4ecb-a463-8e677956c90b